fUST/lending_fUST_20260117
["ID","MTS","AMOUNT","RATE_DAILY","PERIOD"]
[402255160,1768625442009,-500.0,0.00019178,3]
[402255161,1768625442018,-525.8,0.00019178,3]
[402255162,1768625442026,-540.01468021,0.00019178,3]
[402255163,1768625442035,-500.0,0.00019178,3]
[402255164,1768625442044,-500.0,0.00019178,3]
[402255165,1768625442052,-500.0,0.00019178,3]
[402255166,1768625442061,-540.55,0.00019178,3]
[402255167,1768625442070,-500.0,0.00019178,3]
[402255168,1768625442079,-500.0,0.00019178,3]
[402255170,1768625442088,-500.0,0.00019178,3]
[402255172,1768625442097,-500.0,0.00019178,3]
[402255174,1768625442106,-500.0,0.00019178,3]
[402255176,1768625442115,-500.0,0.00019178,3]
[402255178,1768625442124,-500.0,0.00019178,3]
[402255180,1768625442133,-500.0,0.00019178,3]
[402255182,1768625442142,-500.0,0.00019178,3]
[402255184,1768625442152,-500.0,0.00019178,3]
[402255186,1768625442161,-281.96847602,0.00019178,3]
[402255188,1768625442170,-500.0,0.00019178,3]
[402255190,1768625442179,-500.0,0.00019178,3]
[402255192,1768625442188,-614.93,0.00019178,3]
[402255194,1768625442197,-500.0,0.00019178,3]
[402255196,1768625442206,-500.0,0.00019178,3]
[402255197,1768625442215,-500.0,0.00019178,3]
[402255199,1768625442224,-500.0,0.00019178,3]
[402255201,1768625442234,-500.0,0.00019178,3]
[402255203,1768625442243,-856.09,0.00019178,3]
[402255205,1768625442252,-500.0,0.00019178,3]
[402255207,1768625442261,-500.0,0.00019178,3]
[402255209,1768625442270,-151.0,0.00019178,2]
[402255211,1768625442279,-1746.16,0.00019178,3]
[402255213,1768625442288,-500.0,0.00019178,3]
[402255215,1768625442297,-1453.64,0.00019178,3]
[402255217,1768625442307,-500.0,0.00019178,3]
[402255219,1768625442316,-1419.09,0.00019178,3]
[402255221,1768625442325,-500.0,0.00019178,3]
[402255223,1768625442334,-522.78394003,0.00019178,3]
[402255225,1768625442344,-981.83,0.00019178,3]
[402255227,1768625442353,-565.74,0.00019178,3]
[402255229,1768625442362,-950.82,0.00019178,3]
[402255231,1768625442371,-787.22,0.00019178,3]
[402255233,1768625442380,-500.0,0.00019178,3]
[402255235,1768625442389,-674.1,0.00019178,3]
[402255237,1768625442398,-500.0,0.00019178,3]
[402255239,1768625442406,-542.81,0.00019178,3]
[402255241,1768625442415,-500.0,0.00019178,3]
[402255243,1768625442423,-657.53,0.00019178,3]
[402255245,1768625442431,-500.0,0.00019178,3]
[402255247,1768625442440,-500.0,0.00019178,3]
[402255249,1768625442449,-500.0,0.00019178,3]
[402255251,1768625442459,-602.97,0.00019178,3]
[402255253,1768625442472,-500.0,0.00019178,3]
[402255255,1768625442481,-500.0,0.00019178,3]
[402255257,1768625442490,-1710.74,0.00019178,3]
[402255259,1768625442499,-500.0,0.00019178,3]
[402255261,1768625442509,-523.7,0.00019178,3]
[402255263,1768625442518,-603.08,0.00019178,3]
[402255265,1768625442527,-500.0,0.00019178,3]
[402255267,1768625442538,-500.0,0.00019178,3]
[402255270,1768625442547,-1005.03,0.00019178,3]
[402255272,1768625442557,-511.01993808,0.00019178,3]
[402255274,1768625442566,-500.0,0.00019178,3]
[402255276,1768625442575,-632.04690666,0.00019178,3]
[402255277,1768625442584,-500.0,0.00019178,3]
[402255280,1768625442595,-500.0,0.00019178,3]
[402255282,1768625442604,-500.0,0.00019178,3]
[402255284,1768625442613,-500.0,0.00019178,3]
[402255285,1768625442621,-500.0,0.00019178,3]
[402255288,1768625442630,-500.0,0.00019178,3]
[402255289,1768625442640,-500.0,0.00019178,3]
[402255291,1768625442649,-933.6,0.00019178,3]
[402255293,1768625442658,-500.0,0.00019178,3]
[402255295,1768625442667,-500.0,0.00019178,3]
[402255297,1768625442676,-506.73766967,0.00019178,3]
[402255299,1768625442685,-500.0,0.00019178,2]
[402255301,1768625442694,-500.0,0.00019178,3]
[402255303,1768625442703,-500.0,0.00019178,3]
[402255305,1768625442712,-500.0,0.00019178,3]
[402255307,1768625442721,-500.0,0.00019178,3]
[402255309,1768625442730,-500.0,0.00019178,3]
[402255311,1768625442739,-500.0,0.00019178,3]
[402255313,1768625442748,-500.0,0.00019178,3]
[402255315,1768625442757,-500.0,0.00019178,3]
[402255317,1768625442765,-500.0,0.00019178,3]
[402255319,1768625442774,-500.0,0.00019178,3]
[402255321,1768625442783,-500.0,0.00019178,3]
[402255323,1768625442792,-500.0,0.00019178,3]
[402255325,1768625442801,-500.0,0.00019178,3]
[402255327,1768625442810,-500.0,0.00019178,3]
[402255329,1768625442819,-500.0,0.00019178,3]
[402255331,1768625442828,-500.0,0.00019178,3]
[402255333,1768625442837,-500.0,0.00019178,3]
[402255335,1768625442846,-500.0,0.00019178,3]
[402255337,1768625442855,-1187.12,0.00019178,3]
[402255339,1768625442864,-685.57,0.00019178,3]
[402255342,1768625442873,-500.0,0.00019178,3]
[402255343,1768625442883,-500.0,0.00019178,3]
[402255345,1768625442892,-500.0,0.00019178,3]
[402255348,1768625442901,-500.0,0.00019178,3]
[402255349,1768625442910,-500.0,0.00019178,3]
[402255352,1768625442919,-1365.06,0.00019178,3]
[402255354,1768625442928,-500.0,0.00019178,3]
[402255356,1768625442938,-500.0,0.00019178,3]
[402255357,1768625442947,-500.0,0.00019178,3]
[402255359,1768625442957,-500.0,0.00019178,3]
[402255362,1768625442967,-1118.79,0.00019178,3]
[402255363,1768625442978,-504.12,0.00019178,3]
[402255365,1768625442987,-355.97567578,0.00019178,3]
[402255367,1768625442997,-500.0,0.00019178,3]
[402255369,1768625443006,-500.0,0.00019178,3]
[402255371,1768625443015,-500.0,0.00019178,3]
[402255373,1768625443024,-566.39019728,0.00019178,3]
[402255375,1768625443034,-500.0,0.00019178,3]
[402255378,1768625443044,-853.91,0.00019178,3]
[402255380,1768625443053,-543.86,0.00019178,3]
[402255382,1768625443063,-500.0,0.00019178,3]
[402255383,1768625443074,-500.0,0.00019178,3]
[402255385,1768625443083,-500.0,0.00019178,3]
[402255388,1768625443092,-982.26,0.00019178,3]
[402255391,1768625443101,-500.0,0.00019178,3]
[402255394,1768625443111,-500.0,0.00019178,3]
[402255397,1768625443121,-500.0,0.00019178,3]
[402255399,1768625443129,-892.89,0.00019178,3]
[402255401,1768625443139,-375.19693951,0.00019178,3]
[402255403,1768625443148,-500.0,0.00019178,3]
[402255405,1768625443159,-500.0,0.00019178,3]
[402255407,1768625443168,-500.0,0.00019178,3]
[402255409,1768625443177,-1925.72,0.00019178,3]
[402255411,1768625443185,-500.0,0.00019178,3]
[402255413,1768625443195,-624.97,0.00019178,3]
[402255415,1768625443204,-659.07,0.00019178,3]
[402255417,1768625443213,-976.87,0.00019178,3]
[402255419,1768625443222,-500.0,0.00019178,3]
[402255421,1768625443231,-918.67,0.00019178,3]
[402255423,1768625443241,-500.0,0.00019178,2]
[402255425,1768625443250,-601.84,0.00019178,3]
[402255427,1768625443259,-1469.91,0.00019178,3]
[402255429,1768625443268,-647.15,0.00019178,3]
[402255431,1768625443278,-500.0,0.00019178,3]
[402255433,1768625443287,-684.32,0.00019178,3]
[402255435,1768625443297,-500.0,0.00019178,3]
[402255437,1768625443306,-500.0,0.00019178,3]
[402255439,1768625443315,-1152.27,0.00019178,3]
[402255441,1768625443324,-500.0,0.00019178,3]
[402255443,1768625443333,-500.0,0.00019178,3]
[402255445,1768625443342,-500.0,0.00019178,3]
[402255447,1768625443351,-507.27,0.00019178,3]
[402255449,1768625443361,-500.0,0.00019178,3]
[402255451,1768625443370,-500.0,0.00019178,3]
[402255453,1768625443380,-1016.58,0.00019178,3]
[402255455,1768625443389,-500.0,0.00019178,3]
[402255457,1768625443398,-500.0,0.00019178,3]
[402255459,1768625443407,-500.0,0.00019178,3]
[402255461,1768625443415,-500.0,0.00019178,3]
[402255463,1768625443424,-500.0,0.00019178,3]
[402255465,1768625443433,-1281.04,0.00019178,3]
[402255467,1768625443442,-500.0,0.00019178,3]
[402255469,1768625443451,-500.0,0.00019178,3]
[402255471,1768625443461,-500.0,0.00019178,3]
[402255473,1768625443471,-792.56,0.00019178,3]
[402255475,1768625443481,-847.85,0.00019178,3]
[402255477,1768625443490,-500.0,0.00019178,3]
[402255479,1768625443498,-500.0,0.00019178,3]
[402255481,1768625443510,-500.0,0.00019178,3]
[402255483,1768625443519,-1000.0,0.00019178,2]
[402255485,1768625443529,-500.0,0.00019178,3]
[402255487,1768625443538,-500.0,0.00019178,3]
[402255489,1768625443547,-500.0,0.00019178,3]
[402255491,1768625443556,-500.0,0.00019178,3]
[402255493,1768625443566,-522.75268188,0.00019178,3]
[402255494,1768625443575,-444.83809808,0.00019178,3]
[402255497,1768625443584,-154.100715,0.00019178,2]
[402255498,1768625443593,-500.0,0.00019178,3]
[402255501,1768625443602,-500.0,0.00019178,3]
[402255502,1768625443611,-500.0,0.00019178,3]
[402255504,1768625443620,-500.0,0.00019178,3]
[402255506,1768625443629,-500.0,0.00019178,3]
[402255508,1768625443638,-500.0,0.00019178,3]
[402255510,1768625443647,-742.2,0.00019178,3]
[402255512,1768625443657,-500.0,0.00019178,3]
[402255514,1768625443666,-545.70994322,0.00019178,3]
[402255516,1768625443675,-500.0,0.00019178,3]
[402255518,1768625443685,-516.518886,0.00019178,3]
[402255520,1768625443695,-645.99,0.00019178,3]
[402255523,1768625443705,-500.0,0.00019178,3]
[402255526,1768625443715,-500.0,0.00019178,3]
[402255529,1768625443724,-500.0,0.00019178,3]
[402255532,1768625443733,-500.0,0.00019178,3]
[402255536,1768625443742,-500.0,0.00019178,3]
[402255538,1768625443751,-500.0,0.00019178,3]
[402255542,1768625443760,-500.0,0.00019178,3]
[402255544,1768625443770,-500.0,0.00019178,3]
[402255546,1768625443778,-2280.77,0.00019178,3]
[402255548,1768625443787,-500.0,0.00019178,3]
[402255551,1768625443800,-500.0,0.00019178,3]
[402255553,1768625443809,-500.0,0.00019178,3]
[402255555,1768625443817,-500.0,0.00019178,3]
[402255557,1768625443825,-983.39,0.00019178,3]
[402255559,1768625443832,-500.0,0.00019178,3]
[402255561,1768625443841,-516.97,0.00019178,3]
[402255563,1768625443849,-982.68,0.00019178,3]
[402255565,1768625443858,-500.0,0.00019178,3]
[402255567,1768625443866,-1134.28,0.00019178,3]
[402255568,1768625443875,-500.0,0.00019178,3]
[402255570,1768625443883,-806.89,0.00019178,3]
[402255572,1768625443892,-1170.72,0.00019178,3]
[402255574,1768625443901,-500.0,0.00019178,3]
[402255576,1768625443910,-500.0,0.00019178,3]
[402255579,1768625443921,-500.0,0.00019178,3]
[402255580,1768625443930,-500.0,0.00019178,3]
[402255582,1768625443939,-500.0,0.00019178,3]
[402255584,1768625443948,-502.61139783,0.00019178,3]
[402255586,1768625443957,-500.0,0.00019178,3]
[402255589,1768625443967,-500.0,0.00019178,3]
[402255590,1768625443976,-500.0,0.00019178,3]
[402255593,1768625443985,-500.0,0.00019178,3]
[402255595,1768625443994,-1646.76,0.00019178,3]
[402255596,1768625444003,-714.46,0.00019178,3]
[402255599,1768625444013,-500.0,0.00019178,3]
[402255601,1768625444022,-554.96965604,0.00019178,3]
[402255602,1768625444031,-500.0,0.00019178,3]
[402255605,1768625444040,-500.0,0.00019178,3]
[402255607,1768625444049,-810.38,0.00019178,3]
[402255608,1768625444058,-519.00449958,0.00019178,3]
[402255610,1768625444068,-500.0,0.00019178,3]
[402255612,1768625444077,-500.0,0.00019178,3]
[402255615,1768625444087,-641.97,0.00019178,3]
[402255616,1768625444096,-657.04,0.00019178,3]
[402255619,1768625444105,-500.0,0.00019178,3]
[402255620,1768625444114,-500.0,0.00019178,3]
[402255622,1768625444123,-500.0,0.00019178,3]
[402255624,1768625444132,-1652.81,0.00019178,3]
[402255626,1768625444141,-519.23,0.00019178,3]
[402255627,1768625444150,-801.67,0.00019178,3]
[402255628,1768625444159,-500.0,0.00019178,3]
[402255629,1768625444169,-500.4671628,0.00019178,3]
[402255630,1768625444179,-500.0,0.00019178,3]
[402255631,1768625444188,-500.0,0.00019178,3]
[402255632,1768625444197,-500.0,0.00019178,3]
[402255633,1768625444206,-968.58,0.00019178,3]
[402255634,1768625444216,-500.0,0.00019178,3]
[402255635,1768625444225,-1200.0,0.00019178,3]
[402255636,1768625444234,-500.0,0.00019178,3]
[402255637,1768625444243,-500.0,0.00019178,3]
[402255638,1768625444252,-500.0,0.00019178,3]
[402255639,1768625444261,-2007.96,0.00019178,3]
[402255640,1768625444270,-1004.22,0.00019178,3]
[402255641,1768625444280,-156.080835,0.00019178,2]
[402255642,1768625444289,-500.0,0.00019178,3]
[402255643,1768625444298,-568.77,0.00019178,3]
[402255644,1768625444307,-500.0,0.00019178,3]
[402255645,1768625444316,-1021.35,0.00019178,3]
[402255646,1768625444325,-1776.82,0.00019178,3]
[402255647,1768625444335,-500.0,0.00019178,2]
[402255648,1768625444343,-500.0,0.00019178,3]
[402255649,1768625444352,-1207.23,0.00019178,3]
[402255650,1768625444361,-789.14,0.00019178,3]
[402255651,1768625444370,-1118.91,0.00019178,3]
[402255652,1768625444379,-500.0,0.00019178,3]
[402255653,1768625444388,-1177.62,0.00019178,3]
[402255654,1768625444397,-500.0,0.00019178,3]
[402255655,1768625444406,-500.0,0.00019178,3]
[402255656,1768625444416,-500.0,0.00019178,3]
[402255657,1768625444425,-500.0,0.00019178,3]
[402255658,1768625444435,-851.6,0.00019178,3]
[402255659,1768625444443,-500.0,0.00019178,3]
[402255660,1768625444453,-2302.1,0.00019178,3]
[402255661,1768625444464,-500.0,0.00019178,3]
[402255662,1768625444474,-587.2,0.00019178,3]
[402255663,1768625444483,-500.0,0.00019178,3]
[402255664,1768625444492,-500.0,0.00019178,3]
[402255665,1768625444503,-1096.3,0.00019178,3]
[402255666,1768625444512,-500.0,0.00019178,3]
[402255667,1768625444521,-500.0,0.00019178,3]
[402255668,1768625444531,-500.0,0.00019178,3]
[402255669,1768625444541,-500.0,0.00019178,3]
[402255670,1768625444550,-500.0,0.00019178,3]
[402255671,1768625444559,-500.0,0.00019178,3]
[402255672,1768625444568,-500.0,0.00019178,3]
[402255673,1768625444577,-500.0,0.00019178,3]
[402255674,1768625444586,-1013.72,0.00019178,3]
[402255675,1768625444596,-407.41540498,0.00019178,3]
[402255676,1768625444605,-636.76,0.00019178,3]
[402255677,1768625444615,-500.0,0.00019178,3]
[402255678,1768625444624,-923.41,0.00019178,3]
[402255679,1768625444633,-500.0,0.00019178,3]
[402255680,1768625444644,-500.0,0.00019178,3]
[402255681,1768625444660,-500.0,0.00019178,2]
[402255682,1768625444674,-500.0,0.00019178,3]
[402255683,1768625444683,-500.0,0.00019178,3]
[402255684,1768625444694,-500.0,0.00019178,3]
[402255685,1768625444704,-1507.16,0.00019178,3]
[402255686,1768625444715,-500.0,0.00019178,3]
[402255687,1768625444726,-500.0,0.00019178,3]
[402255688,1768625444735,-225.94247433,0.00019178,3]
[402255689,1768625444745,-1425.57,0.00019178,3]
[402255690,1768625444755,-500.0,0.00019178,3]
[402255691,1768625444765,-1568.85,0.00019178,2]
[402255692,1768625444774,-943.5,0.00019178,3]
[402255693,1768625444784,-500.0,0.00019178,3]
[402255694,1768625444794,-500.0,0.00019178,3]
[402255695,1768625444804,-500.0,0.00019178,3]
[402255696,1768625444813,-530.78,0.00019178,3]
[402255697,1768625444822,-1210.81,0.00019178,3]
[402255698,1768625444832,-500.0,0.00019178,3]
[402255699,1768625444841,-580.66,0.00019178,3]
[402255700,1768625444851,-500.0,0.00019178,3]
[402255701,1768625444860,-500.0,0.00019178,3]
[402255702,1768625444874,-500.0,0.00019178,3]
[402255703,1768625444897,-500.0,0.00019178,3]
[402255704,1768625444918,-500.0,0.00019178,3]
[402255705,1768625444938,-938.1,0.00019178,3]
[402255706,1768625444952,-500.0,0.00019178,3]
[402255707,1768625444965,-500.0,0.00019178,3]
[402255708,1768625444975,-602.47,0.00019178,3]
[402255709,1768625444987,-500.0,0.00019178,3]
[402255710,1768625444998,-500.0,0.00019178,3]
[402255711,1768625445008,-1237.9,0.00019178,3]
[402255712,1768625445022,-500.0,0.00019178,3]
[402255713,1768625445034,-1144.43,0.00019178,3]
[402255714,1768625445046,-813.8,0.00019178,3]
[402255715,1768625445057,-500.0,0.00019178,3]
[402255716,1768625445068,-500.0,0.00019178,3]
[402255717,1768625445080,-500.0,0.00019178,3]
[402255718,1768625445090,-500.0,0.00019178,3]
[402255719,1768625445102,-500.0,0.00019178,3]
[402255720,1768625445113,-647.1,0.00019178,3]
[402255721,1768625445124,-501.17354468,0.00019178,3]
[402255722,1768625445137,-524.02,0.00019178,3]
[402255723,1768625445148,-546.84675493,0.00019178,3]
[402255724,1768625445157,-611.86349143,0.00019178,3]
[402255725,1768625445169,-500.0,0.00019178,3]
[402255726,1768625445181,-515.44,0.00019178,3]
[402255727,1768625445190,-500.0,0.00019178,3]
[402255728,1768625445199,-500.0,0.00019178,3]
[402255729,1768625445208,-500.0,0.00019178,3]
[402255730,1768625445218,-500.0,0.00019178,3]
[402255731,1768625445227,-165.19879319,0.00019178,3]
[402255732,1768625445236,-1211.41,0.00019178,3]
[402255733,1768625445245,-500.0,0.00019178,3]
[402255734,1768625445254,-613.24737358,0.00019178,3]
[402255735,1768625445264,-500.0,0.00019178,3]
[402255736,1768625445273,-500.0,0.00019178,3]
[402255737,1768625445282,-500.0,0.00019178,3]
[402255738,1768625445292,-523.21,0.00019178,3]
[402255739,1768625445417,-500.0,0.00019178,3]
[402255740,1768625445437,-500.0,0.00019178,3]
[402255741,1768625445447,-500.0,0.00019178,3]
[402255742,1768625445457,-500.0,0.00019178,3]
[402255743,1768625445471,-500.0,0.00019178,3]
[402255744,1768625445480,-537.34161929,0.00019178,3]
[402255745,1768625445869,-8.54838071,0.00019178,3]
[402255746,1768625445878,-503.78,0.00019178,3]
[402255747,1768625445888,-500.0,0.00019178,3]
[402255748,1768625445897,-294.17527546,0.00019178,3]
[402255749,1768625445952,-205.82472454,0.00019178,3]
[402255750,1768625445962,-500.0,0.00019178,3]
[402255751,1768625445971,-500.0,0.00019178,3]
[402255752,1768625445980,-171.16996203,0.00019178,3]
[402255762,1768625447789,-640.61,0.00016976,3]
[402255763,1768625447799,-1281.22,0.00018346,3]
[402255764,1768625447809,-328.83003797,0.00019178,3]
[402255765,1768625447818,-500.0,0.00019178,3]
[402255766,1768625447828,-566.08417387,0.00019178,3]
[402255767,1768625447838,-1555.49,0.00019178,3]
[402255768,1768625447848,-500.0,0.00019178,3]
[402255769,1768625447857,-500.0,0.00019178,3]
[402255770,1768625447866,-500.0,0.00019178,3]
[402255771,1768625447876,-500.0,0.00019178,3]
[402255772,1768625447885,-736.31,0.00019178,3]
[402255773,1768625447894,-500.0,0.00019178,3]
[402255774,1768625447903,-1110.9,0.00019178,3]
[402255775,1768625447913,-500.0,0.00019178,3]
[402255776,1768625447922,-1853.18,0.00019178,3]
[402255777,1768625447931,-500.0,0.00019178,3]
[402255778,1768625447940,-500.0,0.00019178,3]
[402255779,1768625447949,-500.0,0.00019178,3]
[402255780,1768625447958,-268.29818833,0.00019178,3]
[402255835,1768626631820,-606.0,0.00013084,2]
[402255836,1768626631830,-309.19946918,0.00013084,2]
[402255837,1768626631842,-1023.69553082,0.00013084,2]
[402255838,1768626631851,-179.32989621,0.00013171,2]
[402255839,1768626631860,-300.0,0.00013257,2]
[402255840,1768626631869,-287.0,0.00013257,2]
[402255841,1768626631879,-1200.0,0.00013257,2]
[402255842,1768626631888,-171.62775721,0.00013258,2]
[402255843,1768626631898,-219.1376141,0.00013258,2]
[402255844,1768626631908,-500.0,0.00013258,2]
[402255845,1768626631917,-205.44199119,0.00013258,2]
[402255846,1768626631927,-500.0,0.00013258,2]
[402255847,1768626631936,-500.0,0.00013258,2]
[402255848,1768626631945,-500.0,0.00013258,2]
[402255849,1768626631954,-500.0,0.00013258,2]
[402255850,1768626631963,-500.0,0.00013258,2]
[402255851,1768626631973,-500.0,0.00013258,2]
[402255852,1768626631982,-500.0,0.00013258,2]
[402255853,1768626631992,-500.0,0.00013258,2]
[402255854,1768626632005,-500.0,0.00013258,2]
[402255855,1768626632013,-500.0,0.00013258,2]
[402255856,1768626632023,-500.0,0.00013258,2]
[402255857,1768626632032,-500.0,0.00013258,2]
[402255858,1768626632042,-500.0,0.00013258,2]
[402255859,1768626632051,-500.0,0.00013258,2]
[402255860,1768626632061,-500.0,0.00013258,2]
[402255861,1768626632071,-500.0,0.00013258,2]
[402255862,1768626632082,-500.0,0.00013258,2]
[402255863,1768626632092,-72.76668985,0.00013258,2]
[402255867,1768626637683,-427.23331015,0.00013258,2]
[402255868,1768626637693,-500.0,0.00013258,2]
[402255869,1768626637702,-500.0,0.00013258,2]
[402255870,1768626637711,-500.0,0.00013258,2]
[402255871,1768626637721,-580.79980598,0.00013258,2]
[402255872,1768626637730,-500.0,0.00013258,2]
[402255873,1768626637740,-500.0,0.00013258,2]
[402255874,1768626637750,-500.0,0.00013258,2]
[402255875,1768626637761,-500.0,0.00013258,2]
[402255876,1768626637770,-500.0,0.00013258,2]
[402255877,1768626637778,-500.0,0.00013258,2]
[402255878,1768626637787,-500.0,0.00013258,2]
[402255879,1768626637797,-500.0,0.00013258,2]
[402255880,1768626637808,-500.0,0.00013258,2]
[402255881,1768626637818,-500.0,0.00013258,2]
[402255882,1768626637829,-500.0,0.00013258,2]
[402255883,1768626637839,-500.0,0.00013258,2]
[402255884,1768626637850,-500.0,0.00013258,2]
[402255885,1768626637860,-500.0,0.00013258,2]
[402255886,1768626637869,-500.0,0.00013258,2]
[402255887,1768626637878,-500.0,0.00013258,2]
[402255888,1768626637895,-500.0,0.00013258,2]
[402255889,1768626637907,-500.0,0.00013258,2]
[402255890,1768626637918,-500.0,0.00013258,2]
[402255891,1768626637928,-500.0,0.00013258,2]
[402255892,1768626637937,-500.0,0.00013258,2]
[402255893,1768626637946,-500.0,0.00013258,2]
[402255894,1768626637956,-500.0,0.00013258,2]
[402255895,1768626637966,-500.0,0.00013258,2]
[402255896,1768626637975,-500.0,0.00013258,2]
[402255897,1768626637987,-500.0,0.00013258,2]
[402255898,1768626637997,-500.0,0.00013258,2]
[402255899,1768626638011,-400.0,0.00013258,2]
[402255900,1768626638022,-500.0,0.00013258,2]
[402255901,1768626638031,-500.0,0.00013258,2]
[402255902,1768626638042,-500.0,0.00013273,2]
[402255903,1768626638052,-500.0,0.00013273,2]
[402255904,1768626638061,-500.0,0.00013273,2]
[402255905,1768626638071,-500.0,0.00013273,2]
[402255906,1768626638081,-300.0,0.00013673,2]
[402255907,1768626638091,-500.0,0.00013698,2]
[402255908,1768626638100,-500.0,0.00013698,2]
[402255909,1768626638110,-500.0,0.00013698,2]
[402255910,1768626638120,-500.0,0.00013698,2]
[402255911,1768626638130,-500.0,0.00013698,2]
[402255912,1768626638139,-500.0,0.00013698,2]
[402255913,1768626638148,-525.73912063,0.00013698,2]
[402255914,1768626638158,-500.0,0.00013698,2]
[402255915,1768626638168,-500.0,0.00013699,2]
[402255916,1768626638177,-500.0,0.00013699,2]
[402255917,1768626638189,-640.95571878,0.00013699,2]
[402255918,1768626638198,-500.0,0.00013699,2]
[402255919,1768626638208,-500.0,0.00013699,2]
[402255920,1768626638217,-500.0,0.00013699,2]
[402255921,1768626638227,-500.0,0.0001382,2]
[402255922,1768626638239,-1000.0,0.00013821,2]
[402255923,1768626638248,-1000.0,0.00013821,2]
[402255924,1768626638258,-1000.0,0.00013821,2]
[402255925,1768626638267,-1000.0,0.00013821,2]
[402255926,1768626638276,-600.0,0.00014221,2]
[402255927,1768626638286,-1000.0,0.00014247,2]
[402255928,1768626638299,-1000.0,0.00014247,2]
[402255929,1768626638309,-1000.0,0.00014247,2]
[402255930,1768626638318,-500.0,0.00014365,2]
[402255931,1768626638329,-500.0,0.00014365,2]
[402255932,1768626638338,-500.0,0.00014365,2]
[402255933,1768626638348,-500.0,0.00014368,2]
[402255934,1768626638357,-1500.0,0.00014368,2]
[402255935,1768626638367,-1500.0,0.00014368,2]
[402255936,1768626638376,-1500.0,0.00014368,2]
[402255937,1768626638386,-1500.0,0.00014368,2]
[402255938,1768626638395,-180.0,0.00014535,2]
[402255939,1768626638405,-900.0,0.00014768,2]
[402255940,1768626638415,-1000.0,0.00014795,2]
[402255941,1768626638425,-1500.0,0.00014795,2]
[402255942,1768626638434,-1500.0,0.00014795,2]
[402255943,1768626638443,-500.0,0.00014839,2]
[402255944,1768626638452,-500.0,0.00014839,2]
[402255945,1768626638461,-2000.0,0.00014916,2]
[402255946,1768626638471,-2000.0,0.00014916,2]
[402255947,1768626638481,-2000.0,0.00014916,2]
[402255948,1768626638491,-2000.0,0.00014916,2]
[402255949,1768626638501,-198.153471,0.00015068,2]
[402255950,1768626638510,-211.60927753,0.00015171,2]
[402255951,1768626638520,-652.45719651,0.000152,2]
[402255952,1768626638529,-1200.0,0.00015316,2]
[402255953,1768626638538,-2000.0,0.00015342,2]
[402255954,1768626638547,-2000.0,0.00015342,2]
[402255955,1768626638557,-162.47616926,0.000154,2]
[402255956,1768626638566,-217.48573214,0.000154,2]
[402255957,1768626638575,-500.0,0.00015464,2]
[402255958,1768626638584,-500.0,0.00015464,2]
[402255959,1768626638593,-500.0,0.00015464,2]